[Event "CAN-op"]
[Site "Ottawa CAN"]
[Date "2026.07.15"]
[Round "7.2"]
[White "Stefansson, Vignir Vatnar"]
[Black "Golubka, Petro"]
[Result "1/2-1/2"]
[ECO "E11"]
[WhiteElo "2540"]
[BlackElo "2355"]
[WhiteFideId "-1"]
[BlackFideId "-1"]
[PlyCount "102"]
[GameId "2332995607305962"]
[EventDate "2026.07.11"]
[EventType "swiss"]
[EventRounds "9"]
[EventCountry "CAN"]
[TimeControl "5400+30"]
[WhiteClock "0:08:17"]
[BlackClock "0:03:46"]

1. d4 {[%emt 0:09:53.94]} Nf6 {[%emt 0:01:33.94]} 2. c4 {[%emt 0:00:12]} e6 {[%emt 0:01:06]} 3. Nf3 {[%emt 0:00:17]} Bb4+ {[%emt 0:01:44]} 4. Bd2 {[%emt 0:00:11]} Qe7 {[%emt 0:01:34]} 5. g3 {[%emt 0:00:10]} Nc6 {[%emt 0:01:05]} 6. Nc3 {[%emt 0:00:06]} Bxc3 {[%emt 0:00:19]} 7. Bxc3 {[%emt 0:00:04]} Ne4 {[%emt 0:00:08]} 8. Rc1 {[%emt 0:00:01]} d5 {[%emt 0:01:46]} 9. Bg2 {[%emt 0:01:59]} O-O {[%emt 0:00:10]} 10. O-O {[%emt 0:02:41]} Rd8 {[%emt 0:02:29]} 11. Qc2 {[%emt 0:04:00]} a5 {[%emt 0:00:35]} 12. Rfd1 {[%emt 0:01:00]} Bd7 {[%emt 0:03:53]} 13. Ne1 {[%emt 0:09:58]} f5 {[%emt 0:01:27]} 14. e3 {[%emt 0:13:24.10]} dxc4 {[%emt 0:14:23]} 15. Bxe4 {[%emt 0:04:24]} fxe4 {[%emt 0:00:09]} 16. Qxe4 {[%emt 0:00:03]} Qf7 {[%emt 0:10:41.10]} 17. f4 {[%emt 0:02:48]} Ne7 {[%emt 0:09:23]} 18. Qe5 {[%emt 0:02:10]} Ba4 {[%emt 0:14:29]} 19. Rd2 {[%emt 0:00:49]} b5 {[%emt 0:01:53]} 20. a3 {[%emt 0:08:21]} Qf5 {[%emt 0:06:21]} 21. Nf3 {[%emt 0:01:24]} Nc6 {[%emt 0:04:42]} 22. Qxf5 {[%emt 0:01:25]} exf5 {[%emt 0:00:08]} 23. Rg2 {[%emt 0:01:51]} b4 {[%emt 0:02:06]} 24. Be1 {[%emt 0:00:50]} Re8 {[%emt 0:02:47]} 25. Kf2 {[%emt 0:01:51]} c3 {[%emt 0:04:16]} 26. bxc3 {[%emt 0:00:25]} bxa3 {[%emt 0:01:26]} 27. Ra1 {[%emt 0:00:12]} Bb3 {[%emt 0:00:15]} 28. Rxa3 {[%emt 0:00:05]} a4 {[%emt 0:00:06]} 29. g4 {[%emt 0:02:27]} fxg4 {[%emt 0:01:18]} 30. Rxg4 {[%emt 0:00:06]} Na5 {[%emt 0:01:56]} 31. Ne5 {[%emt 0:05:06]} Nc4 {[%emt 0:04:25]} 32. Nxc4 {[%emt 0:00:12]} Bxc4 {[%emt 0:00:05]} 33. Bd2 {[%emt 0:00:21]} Reb8 {[%emt 0:00:27]} 34. e4 {[%emt 0:03:15]} Rb2 {[%emt 0:01:28]} 35. Ke3 {[%emt 0:00:02]} Ra2 {[%emt 0:01:53]} 36. Rxa2 {[%emt 0:01:04]} Bxa2 {[%emt 0:00:06]} 37. c4 {[%emt 0:00:02]} Bxc4 {[%emt 0:00:31]} 38. Bc3 {[%emt 0:00:28]} g6 {[%emt 0:00:30]} 39. d5 {[%emt 0:01:36]} a3 {[%emt 0:00:29]} 40. f5 {[%emt 0:02:32]} a2 {[%emt 0:00:25]} 41. Ba1 {[%emt 0:02:27]} Ra3+ {[%emt 0:01:58]} 42. Kf4 {[%emt 0:06:01]} Kf7 {[%emt 0:01:15]} 43. fxg6+ {[%emt 0:00:49]} hxg6 {[%emt 0:00:07]} 44. Rh4 {[%emt 0:00:02]} Ke7 {[%emt 0:00:46]} 45. Rh7+ {[%emt 0:01:12]} Kd8 {[%emt 0:00:12]} 46. Rh8+ {[%emt 0:00:04]} Kd7 {[%emt 0:00:05]} 47. Bf6 {[%emt 0:02:40]} Kd6 {[%emt 0:00:40]} 48. Be5+ {[%emt 0:03:56]} Kc5 {[%emt 0:00:39]} 49. Rc8 {[%emt 0:01:12]} Bxd5 {[%emt 0:01:56]} 50. exd5 {[%emt 0:01:25]} a1=Q {[%emt 0:00:06]} 51. Bxa1 {[%emt 0:00:09]} Rxa1 {[%emt 0:00:02]} 1/2-1/2

[Event "CAN-op"]
[Site "Ottawa CAN"]
[Date "2026.07.15"]
[Round "7.3"]
[White "Samsonkin, Artiom"]
[Black "Stremavicius, Titas"]
[Result "0-1"]
[ECO "B53"]
[WhiteElo "2361"]
[BlackElo "2555"]
[WhiteFideId "-1"]
[BlackFideId "-1"]
[PlyCount "95"]
[GameId "2332995607310059"]
[EventDate "2026.07.11"]
[EventType "swiss"]
[EventRounds "9"]
[EventCountry "CAN"]
[TimeControl "5400+30"]
[WhiteClock "0:00:33"]
[BlackClock "0:05:41"]

1. e4 {[%emt 0:00:29.94]} c5 {[%emt 0:07:38.94]} 2. Nf3 {[%emt 0:00:00]} Nc6 {[%emt 0:00:06]} 3. Bb5 {[%emt 0:00:00]} d6 {[%emt 0:00:06]} 4. d4 {[%emt 0:00:11]} cxd4 {[%emt 0:00:50]} 5. Qxd4 {[%emt 0:00:10]} Bd7 {[%emt 0:00:07]} 6. Bxc6 {[%emt 0:00:37]} Bxc6 {[%emt 0:00:09]} 7. Nc3 {[%emt 0:00:26]} Nf6 {[%emt 0:00:38]} 8. Bg5 {[%emt 0:00:17]} e6 {[%emt 0:00:07]} 9. O-O-O {[%emt 0:00:54]} Be7 {[%emt 0:00:09]} 10. Qd3 {[%emt 0:00:19]} Qa5 {[%emt 0:01:43]} 11. h4 {[%emt 0:00:38]} h6 {[%emt 0:01:49]} 12. Bd2 {[%emt 0:00:19]} Qa6 {[%emt 0:00:11]} 13. Qxa6 {[%emt 0:00:09]} bxa6 {[%emt 0:00:06]} 14. Rde1 {[%emt 0:00:15]} Rc8 {[%emt 0:01:52]} 15. Nd4 {[%emt 0:00:58]} Ba8 {[%emt 0:00:10]} 16. f3 {[%emt 0:00:16]} Nd7 {[%emt 0:00:40]} 17. Nb3 {[%emt 0:11:18]} Ne5 {[%emt 0:09:33]} 18. Kb1 {[%emt 0:04:13]} Nc4 {[%emt 0:14:29.10]} 19. Bc1 {[%emt 0:00:38]} O-O {[%emt 0:04:59]} 20. Nd1 {[%emt 0:01:43]} a5 {[%emt 0:02:04]} 21. Ne3 {[%emt 0:00:28]} a4 {[%emt 0:00:14]} 22. Nxc4 {[%emt 0:00:30]} Rxc4 {[%emt 0:00:07]} 23. Nd2 {[%emt 0:00:06]} Rc5 {[%emt 0:06:52]} 24. Nf1 {[%emt 0:03:42]} d5 {[%emt 0:02:46]} 25. exd5 {[%emt 0:22:33.10]} Bxd5 {[%emt 0:01:11]} 26. Ne3 {[%emt 0:01:40]} Bc6 {[%emt 0:00:26]} 27. Ng4 {[%emt 0:05:34]} Rc8 {[%emt 0:17:36]} 28. Be3 {[%emt 0:12:07]} Ra5 {[%emt 0:00:08]} 29. Bd4 {[%emt 0:01:58]} h5 {[%emt 0:00:22]} 30. Ne5 {[%emt 0:01:00]} Bd5 {[%emt 0:03:01]} 31. Nd3 {[%emt 0:01:00]} Rc4 {[%emt 0:02:39]} 32. c3 {[%emt 0:01:49]} Rb5 {[%emt 0:00:05]} 33. Nf4 {[%emt 0:08:23]} Bb7 {[%emt 0:05:05]} 34. Kc2 {[%emt 0:02:59]} a6 {[%emt 0:00:49]} 35. Nd3 {[%emt 0:01:08]} Rc8 {[%emt 0:00:41]} 36. Re5 {[%emt 0:11:25]} Bd5 {[%emt 0:01:06]} 37. Nf4 {[%emt 0:00:04]} Bf6 {[%emt 0:05:49]} 38. Rxd5 {[%emt 0:00:47]} exd5 {[%emt 0:00:01]} 39. Bxf6 {[%emt 0:00:00]} gxf6 {[%emt 0:00:07]} 40. Nxh5 {[%emt 0:00:37]} a3 {[%emt 0:00:51]} 41. Rb1 {[%emt 0:01:11]} d4 {[%emt 0:05:12]} 42. Nxf6+ {[%emt 0:00:11]} Kg7 {[%emt 0:00:06]} 43. Ne4 {[%emt 0:00:38]} f5 {[%emt 0:00:37]} 44. Nd6 {[%emt 0:00:24]} d3+ {[%emt 0:02:13]} 45. Kc1 {[%emt 0:03:11]} d2+ {[%emt 0:02:21]} 46. Kd1 {[%emt 0:00:34]} Rxb2 {[%emt 0:00:05]} 47. Ra1 {[%emt 0:05:36]} Rc5 {[%emt 0:00:22]} 48. g4 {[%emt 0:00:31]} 0-1

[Event "CAN-op"]
[Site "Ottawa CAN"]
[Date "2026.07.15"]
[Round "7.4"]
[White "Jaferian, Koosha"]
[Black "Chiku-Ratte, Olivier-Kenta"]
[Result "1-0"]
[ECO "B06"]
[WhiteElo "2249"]
[BlackElo "2354"]
[WhiteFideId "-1"]
[BlackFideId "-1"]
[PlyCount "93"]
[GameId "2332995607314156"]
[EventDate "2026.07.11"]
[EventType "swiss"]
[EventRounds "9"]
[EventCountry "CAN"]
[TimeControl "5400+30"]
[WhiteClock "0:29:19"]
[BlackClock "0:00:32"]

1. e4 {[%emt 0:00:00.94]} c5 {[%emt 0:17:07.94]} 2. Nf3 {[%emt 0:00:12]} g6 {[%emt 0:00:04]} 3. c3 {[%emt 0:00:12]} d5 {[%emt 0:00:07]} 4. exd5 {[%emt 0:00:11]} Qxd5 {[%emt 0:00:04]} 5. d4 {[%emt 0:00:09]} Bg7 {[%emt 0:07:45]} 6. Nbd2 {[%emt 0:00:07]} cxd4 {[%emt 0:13:21.10]} 7. Bc4 {[%emt 0:00:08]} Qd8 {[%emt 0:00:12]} 8. Nxd4 {[%emt 0:02:07]} Nf6 {[%emt 0:01:14]} 9. N2f3 {[%emt 0:03:39]} O-O {[%emt 0:00:57]} 10. O-O {[%emt 0:00:14]} a6 {[%emt 0:04:42]} 11. Qe2 {[%emt 0:06:43]} b5 {[%emt 0:03:20]} 12. Bb3 {[%emt 0:00:07]} Qc7 {[%emt 0:03:35]} 13. Re1 {[%emt 0:05:25]} e6 {[%emt 0:01:40]} 14. a4 {[%emt 0:02:37]} bxa4 {[%emt 0:04:22]} 15. Rxa4 {[%emt 0:01:13]} Bd7 {[%emt 0:09:15]} 16. Ra1 {[%emt 0:05:27]} Nc6 {[%emt 0:09:23]} 17. Rxa6 {[%emt 0:03:51]} Nxd4 {[%emt 0:00:24]} 18. Nxd4 {[%emt 0:02:43]} Rxa6 {[%emt 0:01:50]} 19. Qxa6 {[%emt 0:00:02]} Ng4 {[%emt 0:00:42]} 20. Nf3 {[%emt 0:01:54]} Qc5 {[%emt 0:03:04]} 21. Qe2 {[%emt 0:04:21.10]} Bb5 {[%emt 0:08:21]} 22. Qd2 {[%emt 0:03:49]} Bc6 {[%emt 0:01:33]} 23. Nd4 {[%emt 0:04:40]} Bd5 {[%emt 0:04:19]} 24. Bxd5 {[%emt 0:03:24]} Qxd5 {[%emt 0:00:24]} 25. Nf3 {[%emt 0:00:42]} Qb3 {[%emt 0:01:13]} 26. h3 {[%emt 0:01:15]} Nf6 {[%emt 0:00:05]} 27. Qd1 {[%emt 0:02:16]} Qa2 {[%emt 0:00:40]} 28. Re2 {[%emt 0:03:30]} Nd5 {[%emt 0:00:38]} 29. Qc2 {[%emt 0:05:15]} Rc8 {[%emt 0:00:39]} 30. Ne1 {[%emt 0:04:05]} Nb4 {[%emt 0:01:36]} 31. Qe4 {[%emt 0:00:53]} Nd5 {[%emt 0:00:37]} 32. Nd3 {[%emt 0:01:21]} Qb1 {[%emt 0:00:41]} 33. Re1 {[%emt 0:00:26]} Qa2 {[%emt 0:01:55]} 34. Bg5 {[%emt 0:01:20]} Qa7 {[%emt 0:00:54]} 35. c4 {[%emt 0:00:54]} Nf6 {[%emt 0:00:30]} 36. Bxf6 {[%emt 0:00:48]} Bxf6 {[%emt 0:00:01]} 37. b4 {[%emt 0:00:27]} Kg7 {[%emt 0:00:41]} 38. c5 {[%emt 0:00:27]} Qa6 {[%emt 0:00:47]} 39. Ne5 {[%emt 0:01:06]} Qa3 {[%emt 0:00:31]} 40. Nxf7 {[%emt 0:01:56]} Rb8 {[%emt 0:00:17]} 41. Qxe6 {[%emt 0:01:30]} Qxb4 {[%emt 0:00:14]} 42. Nd6 {[%emt 0:00:12]} Bc3 {[%emt 0:01:11]} 43. Qf7+ {[%emt 0:01:22]} Kh6 {[%emt 0:00:14]} 44. Re4 {[%emt 0:00:52]} Qb1+ {[%emt 0:00:45]} 45. Kh2 {[%emt 0:00:03]} Rb4 {[%emt 0:00:27]} 46. Qf4+ {[%emt 0:00:37]} g5 {[%emt 0:00:36]} 47. Re6+ {[%emt 0:00:08]} 1-0

[Event "CAN-op"]
[Site "Ottawa CAN"]
[Date "2026.07.15"]
[Round "7.5"]
[White "Sambuev, Bator"]
[Black "Noritsyn, Nikolay"]
[Result "0-1"]
[ECO "A47"]
[WhiteElo "2420"]
[BlackElo "2458"]
[WhiteFideId "-1"]
[BlackFideId "-1"]
[PlyCount "80"]
[GameId "2332995607322349"]
[EventDate "2026.07.11"]
[EventType "swiss"]
[EventRounds "9"]
[EventCountry "CAN"]
[TimeControl "5400+30"]
[WhiteClock "0:02:14"]
[BlackClock "0:03:48"]

1. Nf3 {[%emt 0:00:08.94]} Nf6 {[%emt 0:00:27.94]} 2. d4 {[%emt 0:00:39]} e6 {[%emt 0:00:18]} 3. Bf4 {[%emt 0:00:21]} b6 {[%emt 0:07:02]} 4. e3 {[%emt 0:00:08]} Bb7 {[%emt 0:00:05]} 5. Bd3 {[%emt 0:00:07]} Nh5 {[%emt 0:00:50]} 6. Bg5 {[%emt 0:00:19]} Be7 {[%emt 0:00:05]} 7. h4 {[%emt 0:00:28]} h6 {[%emt 0:01:11]} 8. Bxe7 {[%emt 0:03:17]} Qxe7 {[%emt 0:00:06]} 9. c4 {[%emt 0:00:47]} c5 {[%emt 0:06:15]} 10. Nc3 {[%emt 0:07:08]} cxd4 {[%emt 0:00:44]} 11. Nxd4 {[%emt 0:01:07]} Nf6 {[%emt 0:00:33]} 12. Ndb5 {[%emt 0:12:02]} Na6 {[%emt 0:03:59]} 13. Be2 {[%emt 0:06:04]} O-O {[%emt 0:03:45]} 14. Nd6 {[%emt 0:01:25]} Bc6 {[%emt 0:02:32]} 15. Qd2 {[%emt 0:03:57]} Ne8 {[%emt 0:05:12]} 16. Ncb5 {[%emt 0:02:47.10]} Nc5 {[%emt 0:12:34.10]} 17. Nxe8 {[%emt 0:16:31]} Ne4 {[%emt 0:15:16]} 18. Qc2 {[%emt 0:00:44]} Raxe8 {[%emt 0:05:20]} 19. Nxa7 {[%emt 0:02:11]} Qb4+ {[%emt 0:01:48]} 20. Kf1 {[%emt 0:02:49]} Bb7 {[%emt 0:01:08]} 21. Rd1 {[%emt 0:03:04]} d5 {[%emt 0:13:19]} 22. Bf3 {[%emt 0:08:41]} f5 {[%emt 0:02:01]} 23. Bxe4 {[%emt 0:11:55]} fxe4 {[%emt 0:00:14]} 24. cxd5 {[%emt 0:00:19]} exd5 {[%emt 0:04:04]} 25. a4 {[%emt 0:09:56]} Ba6+ {[%emt 0:02:07]} 26. Kg1 {[%emt 0:02:15]} Bd3 {[%emt 0:00:32]} 27. Qc6 {[%emt 0:00:16]} Qxb2 {[%emt 0:03:13]} 28. Qxd5+ {[%emt 0:00:12]} Kh8 {[%emt 0:00:11]} 29. Rh3 {[%emt 0:00:06]} Rd8 {[%emt 0:07:03]} 30. Qc6 {[%emt 0:04:48]} Qxf2+ {[%emt 0:01:14]} 31. Kh2 {[%emt 0:00:01]} Bf1 {[%emt 0:00:17]} 32. Rxf1 {[%emt 0:00:12]} Qxf1 {[%emt 0:00:03]} 33. Qxe4 {[%emt 0:00:06]} Rd1 {[%emt 0:00:51]} 34. Rf3 {[%emt 0:02:03]} Rxf3 {[%emt 0:00:36]} 35. Qxf3 {[%emt 0:00:03]} Qxf3 {[%emt 0:00:06]} 36. gxf3 {[%emt 0:00:04]} Rd3 {[%emt 0:00:15]} 37. Kg3 {[%emt 0:00:27]} Rxe3 {[%emt 0:00:04]} 38. Nb5 {[%emt 0:00:25]} Rb3 {[%emt 0:00:21]} 39. h5 {[%emt 0:00:16]} Kg8 {[%emt 0:00:27]} 40. Nc7 {[%emt 0:00:07]} Kf7 {[%emt 0:00:33]} 0-1

[Event "CAN-op"]
[Site "Ottawa CAN"]
[Date "2026.07.15"]
[Round "7.8"]
[White "Willy, Stephen"]
[Black "Plotkin, Victor"]
[Result "1-0"]
[ECO "A11"]
[WhiteElo "2294"]
[BlackElo "2279"]
[WhiteFideId "-1"]
[BlackFideId "-1"]
[PlyCount "65"]
[GameId "2332995607334642"]
[EventDate "2026.07.11"]
[EventType "swiss"]
[EventRounds "9"]
[EventCountry "CAN"]
[TimeControl "5400+30"]
[WhiteClock "0:22:44"]
[BlackClock "0:21:36"]

1. Nf3 {[%emt 0:00:01.94]} d5 {[%emt 0:00:04.94]} 2. g3 {[%emt 0:00:06]} Nf6 {[%emt 0:00:07]} 3. Bg2 {[%emt 0:00:06]} Bg4 {[%emt 0:00:08]} 4. c4 {[%emt 0:00:08]} c6 {[%emt 0:00:13]} 5. Ne5 {[%emt 0:00:13]} e6 {[%emt 0:07:22]} 6. cxd5 {[%emt 0:01:43]} exd5 {[%emt 0:01:01]} 7. Nxg4 {[%emt 0:00:40]} Nxg4 {[%emt 0:00:19]} 8. e4 {[%emt 0:00:29]} Ne5 {[%emt 0:09:24]} 9. d4 {[%emt 0:01:26]} Bb4+ {[%emt 0:00:57]} 10. Nc3 {[%emt 0:00:58]} Nc4 {[%emt 0:02:38]} 11. O-O {[%emt 0:05:25]} Bxc3 {[%emt 0:01:54]} 12. bxc3 {[%emt 0:00:08]} O-O {[%emt 0:03:13]} 13. Qb3 {[%emt 0:11:03]} Qd7 {[%emt 0:08:56]} 14. Rb1 {[%emt 0:01:39]} b6 {[%emt 0:00:59]} 15. exd5 {[%emt 0:00:31]} cxd5 {[%emt 0:00:25]} 16. Qb5 {[%emt 0:00:18]} Rd8 {[%emt 0:00:35]} 17. Re1 {[%emt 0:00:24]} h6 {[%emt 0:17:27.10]} 18. Qxd7 {[%emt 0:02:43]} Nxd7 {[%emt 0:00:14]} 19. Bxd5 {[%emt 0:00:07]} Rac8 {[%emt 0:00:06]} 20. Re7 {[%emt 0:08:08]} Nd6 {[%emt 0:00:29]} 21. Bf4 {[%emt 0:03:57]} Nf6 {[%emt 0:00:18]} 22. Bb3 {[%emt 0:00:18]} Nfe4 {[%emt 0:22:56]} 23. c4 {[%emt 0:09:03.10]} a5 {[%emt 0:00:00]} 24. Rc1 {[%emt 0:06:45]} g5 {[%emt 0:00:00]} 25. Be3 {[%emt 0:03:17]} Kf8 {[%emt 0:00:00]} 26. Ra7 {[%emt 0:08:54]} Nf5 {[%emt 0:08:57]} 27. c5 {[%emt 0:08:36]} Nxe3 {[%emt 0:00:00]} 28. fxe3 {[%emt 0:02:19]} bxc5 {[%emt 0:00:00]} 29. Rxf7+ {[%emt 0:00:27]} Ke8 {[%emt 0:00:00]} 30. Rcf1 {[%emt 0:03:32]} Nc3 {[%emt 0:00:00]} 31. dxc5 {[%emt 0:00:37]} Rxc5 {[%emt 0:00:00]} 32. Rf8+ {[%emt 0:00:08]} Kd7 {[%emt 0:00:00]} 33. R1f7+ {[%emt 0:00:06]} 1-0

[Event "CAN-op"]
[Site "Ottawa CAN"]
[Date "2026.07.16"]
[Round "8.1"]
[White "Stremavicius, Titas"]
[Black "Rodrigue-Lemieux, Shawn"]
[Result "1/2-1/2"]
[ECO "B45"]
[WhiteElo "2555"]
[BlackElo "2534"]
[WhiteFideId "-1"]
[BlackFideId "-1"]
[PlyCount "113"]
[GameId "2332995607355154"]
[EventDate "2026.07.11"]
[EventType "swiss"]
[EventRounds "9"]
[EventCountry "CAN"]
[TimeControl "5400+30"]
[WhiteClock "0:00:50"]
[BlackClock "0:03:33"]

1. e4 {[%emt 0:12:55.94]} c5 {[%emt 0:01:21.94]} 2. Nf3 {[%emt 0:00:08]} Nc6 {[%emt 0:00:07]} 3. d4 {[%emt 0:00:51]} cxd4 {[%emt 0:00:08]} 4. Nxd4 {[%emt 0:00:03]} e6 {[%emt 0:05:55]} 5. Nc3 {[%emt 0:00:13]} Bc5 {[%emt 0:02:55]} 6. Nb3 {[%emt 0:01:00]} Bb4 {[%emt 0:01:02]} 7. Qg4 {[%emt 0:01:21]} Nf6 {[%emt 0:00:10]} 8. Qxg7 {[%emt 0:00:06]} Rg8 {[%emt 0:00:08]} 9. Qh6 {[%emt 0:00:03]} Rg6 {[%emt 0:00:18]} 10. Qh4 {[%emt 0:00:21]} Rg4 {[%emt 0:00:50]} 11. Qh3 {[%emt 0:00:10]} d5 {[%emt 0:00:07]} 12. Be2 {[%emt 0:00:17]} Rg6 {[%emt 0:00:55]} 13. O-O {[%emt 0:02:51]} e5 {[%emt 0:00:13]} 14. Qh4 {[%emt 0:00:58]} Bxc3 {[%emt 0:00:09]} 15. bxc3 {[%emt 0:00:06]} Nxe4 {[%emt 0:00:11]} 16. Qxd8+ {[%emt 0:00:06]} Nxd8 {[%emt 0:00:09]} 17. Bh5 {[%emt 0:01:30]} Rg8 {[%emt 0:03:11]} 18. Re1 {[%emt 0:01:51]} Nc6 {[%emt 0:16:14]} 19. c4 {[%emt 0:01:19]} dxc4 {[%emt 0:07:00.10]} 20. Rxe4 {[%emt 0:00:10]} cxb3 {[%emt 0:00:08]} 21. axb3 {[%emt 0:00:10]} Be6 {[%emt 0:03:39]} 22. Be3 {[%emt 0:23:32.10]} Bd5 {[%emt 0:13:44]} 23. Rg4 {[%emt 0:00:05]} Rxg4 {[%emt 0:00:07]} 24. Bxg4 {[%emt 0:00:05]} Be4 {[%emt 0:00:25]} 25. c3 {[%emt 0:04:44]} Rd8 {[%emt 0:04:44]} 26. b4 {[%emt 0:08:18]} a6 {[%emt 0:00:07]} 27. Rd1 {[%emt 0:00:21]} Rxd1+ {[%emt 0:03:38]} 28. Bxd1 {[%emt 0:00:03]} f5 {[%emt 0:06:48]} 29. f3 {[%emt 0:05:20]} Bd3 {[%emt 0:00:13]} 30. Bb6 {[%emt 0:02:06]} Kd7 {[%emt 0:03:27]} 31. Ba4 {[%emt 0:05:55]} Kd6 {[%emt 0:02:03]} 32. Kf2 {[%emt 0:03:40]} f4 {[%emt 0:04:22]} 33. g3 {[%emt 0:02:48]} fxg3+ {[%emt 0:00:22]} 34. hxg3 {[%emt 0:00:12]} Ne7 {[%emt 0:01:32]} 35. Bc5+ {[%emt 0:01:05]} Ke6 {[%emt 0:00:05]} 36. Bb3+ {[%emt 0:00:27]} Kd7 {[%emt 0:04:33]} 37. g4 {[%emt 0:03:28]} Ng6 {[%emt 0:01:16]} 38. Bd5 {[%emt 0:11:59]} Kc7 {[%emt 0:03:29]} 39. Bg8 {[%emt 0:00:05]} Nf4 {[%emt 0:02:16]} 40. Bf8 {[%emt 0:00:13]} b6 {[%emt 0:01:48]} 41. Ke3 {[%emt 0:04:08]} Bg6 {[%emt 0:00:42]} 42. c4 {[%emt 0:01:05]} a5 {[%emt 0:01:50]} 43. Bg7 {[%emt 0:00:45]} Nd3 {[%emt 0:01:09]} 44. bxa5 {[%emt 0:00:53]} bxa5 {[%emt 0:00:11]} 45. Bd5 {[%emt 0:00:26]} Kd6 {[%emt 0:01:44]} 46. Bf8+ {[%emt 0:00:38]} Kd7 {[%emt 0:00:35]} 47. c5 {[%emt 0:01:48]} Nb4 {[%emt 0:01:19]} 48. Bb3 {[%emt 0:00:12]} Kc6 {[%emt 0:02:44]} 49. Ba4+ {[%emt 0:00:02]} Kd5 {[%emt 0:01:26]} 50. Bb3+ {[%emt 0:00:04]} Kc6 {[%emt 0:00:04]} 51. Ba4+ {[%emt 0:00:04]} Kd5 {[%emt 0:00:04]} 52. c6 {[%emt 0:02:22]} Na6 {[%emt 0:00:04]} 53. Ba3 {[%emt 0:01:22]} Nc7 {[%emt 0:00:45]} 54. Bb2 {[%emt 0:00:55]} Kd6 {[%emt 0:02:24]} 55. Ba3+ {[%emt 0:00:04]} Kd5 {[%emt 0:00:04]} 56. Bb2 {[%emt 0:01:57]} Kd6 {[%emt 0:00:02]} 57. Ba3+ {[%emt 0:00:29]} 1/2-1/2

[Event "CAN-op"]
[Site "Ottawa CAN"]
[Date "2026.07.16"]
[Round "8.3"]
[White "Noritsyn, Nikolay"]
[Black "Stefansson, Vignir Vatnar"]
[Result "1/2-1/2"]
[ECO "B60"]
[WhiteElo "2458"]
[BlackElo "2540"]
[WhiteFideId "-1"]
[BlackFideId "-1"]
[PlyCount "93"]
[GameId "2332995607359253"]
[EventDate "2026.07.11"]
[EventType "swiss"]
[EventRounds "9"]
[EventCountry "CAN"]
[TimeControl "5400+30"]
[WhiteClock "0:00:37"]
[BlackClock "0:05:50"]

1. e4 {[%emt 0:00:03.94]} c5 {[%emt 0:29:25.94]} 2. Nf3 {[%emt 0:00:12]} d6 {[%emt 0:00:01]} 3. d4 {[%emt 0:00:09]} cxd4 {[%emt 0:00:03]} 4. Nxd4 {[%emt 0:00:06]} Nf6 {[%emt 0:00:02]} 5. Nc3 {[%emt 0:00:11]} Nc6 {[%emt 0:00:03]} 6. Bg5 {[%emt 0:00:16]} Bd7 {[%emt 0:00:04]} 7. Bb5 {[%emt 0:11:15]} Rc8 {[%emt 0:04:59.10]} 8. Bxc6 {[%emt 0:06:39]} Bxc6 {[%emt 0:02:21]} 9. Qd3 {[%emt 0:01:26]} Qa5 {[%emt 0:12:35]} 10. Bxf6 {[%emt 0:04:30]} gxf6 {[%emt 0:00:06]} 11. O-O-O {[%emt 0:00:17]} e6 {[%emt 0:02:13]} 12. f4 {[%emt 0:03:53]} Bd7 {[%emt 0:09:28]} 13. Kb1 {[%emt 0:02:44]} a6 {[%emt 0:08:23]} 14. Rhe1 {[%emt 0:07:33.10]} Be7 {[%emt 0:00:00]} 15. Re3 {[%emt 0:01:32]} Kd8 {[%emt 0:00:00]} 16. e5 {[%emt 0:12:49]} fxe5 {[%emt 0:00:00]} 17. fxe5 {[%emt 0:00:04]} d5 {[%emt 0:00:00]} 18. Rf3 {[%emt 0:00:48]} Be8 {[%emt 0:00:00]} 19. Qf1 {[%emt 0:02:27]} Qb6 {[%emt 0:00:38]} 20. Nce2 {[%emt 0:20:15]} Rc7 {[%emt 0:03:29]} 21. Qf2 {[%emt 0:07:28]} Rg8 {[%emt 0:03:07]} 22. Rxf7 {[%emt 0:04:24]} Kc8 {[%emt 0:05:23]} 23. Rf3 {[%emt 0:01:53]} Bg6 {[%emt 0:03:02]} 24. Nf4 {[%emt 0:00:18]} Be4 {[%emt 0:01:01]} 25. Rb3 {[%emt 0:00:38]} Rxc2 {[%emt 0:01:24]} 26. Qxc2+ {[%emt 0:00:45]} Bxc2+ {[%emt 0:00:04]} 27. Kxc2 {[%emt 0:00:44]} Qa7 {[%emt 0:02:34]} 28. Kb1 {[%emt 0:00:05]} Bc5 {[%emt 0:05:35]} 29. Rc1 {[%emt 0:01:51]} b6 {[%emt 0:01:22]} 30. Ndxe6 {[%emt 0:00:42]} Re8 {[%emt 0:00:01]} 31. Rbc3 {[%emt 0:02:43]} Kb8 {[%emt 0:00:51]} 32. Nxc5 {[%emt 0:03:25]} bxc5 {[%emt 0:00:04]} 33. Rxc5 {[%emt 0:00:04]} Qf7 {[%emt 0:00:04]} 34. g3 {[%emt 0:02:38]} Rxe5 {[%emt 0:00:23]} 35. a3 {[%emt 0:00:23]} Qf5+ {[%emt 0:00:28]} 36. Ka1 {[%emt 0:00:30]} d4 {[%emt 0:01:34]} 37. R5c4 {[%emt 0:00:10]} Re4 {[%emt 0:00:30]} 38. Nd3 {[%emt 0:00:47]} Re3 {[%emt 0:01:31]} 39. Nb4 {[%emt 0:00:39]} d3 {[%emt 0:00:08]} 40. Rd4 {[%emt 0:00:23]} Kb7 {[%emt 0:02:08]} 41. Nd5 {[%emt 0:02:16]} Rf3 {[%emt 0:01:24]} 42. Rb4+ {[%emt 0:00:32]} Ka8 {[%emt 0:00:41]} 43. Nb6+ {[%emt 0:00:11]} Ka7 {[%emt 0:00:20]} 44. Nc8+ {[%emt 0:00:20]} Ka8 {[%emt 0:00:04]} 45. Nb6+ {[%emt 0:00:46]} Ka7 {[%emt 0:00:02]} 46. Nc8+ {[%emt 0:00:49]} Ka8 {[%emt 0:00:04]} 47. Nb6+ {[%emt 0:00:49]} 1/2-1/2

[Event "CAN-op"]
[Site "Ottawa CAN"]
[Date "2026.07.16"]
[Round "8.5"]
[White "Golubka, Petro"]
[Black "Willy, Stephen"]
[Result "1-0"]
[ECO "B07"]
[WhiteElo "2355"]
[BlackElo "2294"]
[WhiteFideId "-1"]
[BlackFideId "-1"]
[PlyCount "57"]
[GameId "2332995607363352"]
[EventDate "2026.07.11"]
[EventType "swiss"]
[EventRounds "9"]
[EventCountry "CAN"]
[TimeControl "5400+30"]
[WhiteClock "0:39:08"]
[BlackClock "0:35:35"]

1. d4 {[%emt 0:13:37.94]} g6 {[%emt 0:00:11.94]} 2. e4 {[%emt 0:00:08]} Bg7 {[%emt 0:00:05]} 3. c3 {[%emt 0:00:06]} d6 {[%emt 0:00:09]} 4. Nf3 {[%emt 0:00:41]} Nf6 {[%emt 0:00:52]} 5. Bd3 {[%emt 0:00:09]} O-O {[%emt 0:00:22]} 6. O-O {[%emt 0:00:16]} Nbd7 {[%emt 0:00:13]} 7. Nbd2 {[%emt 0:04:03]} e5 {[%emt 0:00:14]} 8. Re1 {[%emt 0:00:05]} Re8 {[%emt 0:00:16]} 9. d5 {[%emt 0:04:34]} c6 {[%emt 0:16:19]} 10. c4 {[%emt 0:00:08]} Nc5 {[%emt 0:02:16]} 11. Bf1 {[%emt 0:00:22]} a5 {[%emt 0:00:33]} 12. Rb1 {[%emt 0:00:33]} Bd7 {[%emt 0:05:25]} 13. b3 {[%emt 0:00:37]} cxd5 {[%emt 0:02:19]} 14. cxd5 {[%emt 0:00:07]} b5 {[%emt 0:01:08]} 15. a3 {[%emt 0:10:23]} b4 {[%emt 0:08:21.10]} 16. a4 {[%emt 0:00:00]} Rf8 {[%emt 0:04:50]} 17. Rb2 {[%emt 0:00:00]} h6 {[%emt 0:05:12]} 18. Rc2 {[%emt 0:00:00]} Ne8 {[%emt 0:01:42]} 19. Rxc5 {[%emt 0:00:25]} dxc5 {[%emt 0:00:02]} 20. Nc4 {[%emt 0:00:05]} Bg4 {[%emt 0:01:27]} 21. h3 {[%emt 0:00:52]} Bxf3 {[%emt 0:00:27]} 22. Qxf3 {[%emt 0:00:07]} Nd6 {[%emt 0:00:13]} 23. Be3 {[%emt 0:00:30]} Rc8 {[%emt 0:01:13]} 24. Nxd6 {[%emt 0:11:21.10]} Qxd6 {[%emt 0:00:02]} 25. Bd3 {[%emt 0:00:06]} Kh7 {[%emt 0:02:50]} 26. Rc1 {[%emt 0:06:23]} Bf6 {[%emt 0:03:15]} 27. Bb5 {[%emt 0:07:06]} c4 {[%emt 0:08:51]} 28. bxc4 {[%emt 0:00:53]} b3 {[%emt 0:00:07]} 29. Rb1 {[%emt 0:02:14]} 1-0